[Event "Titled Tuesday Blitz May 23 Late 2023"]
[White "Alimpic, Aleksa"]
[Black "Chlpik, Martin"]
[WhiteFideId "974323"]
[BlackFideId "14923351"]
[WhiteElo "2298"]
[BlackElo "2109"]
[Result "0-1"]
[Round "06"]
[TimeControl "180+2"]
[Date "2023.05.23"]
[WhiteClock "0:00:00"]
[BlackClock "0:00:30"]

1. Nf3 {[%clk 0:03:00]}  c5 {[%clk 0:02:59]} 2. c4 {[%clk 0:03:00]}  a6 {[%clk 0:02:57]} 3. g3 {[%clk 0:02:58]}  b5 {[%clk 0:02:57]} 4. Bg2 {[%clk 0:02:55]}  Bb7 {[%clk 0:02:55]} 5. b3 {[%clk 0:02:50]}  e5 {[%clk 0:02:55]} 6. O-O {[%clk 0:02:47]}  e4 {[%clk 0:02:55]} 7. Ne1 {[%clk 0:02:44]}  Nf6 {[%clk 0:02:56]} 8. d3 {[%clk 0:02:29]}  Bd6 {[%clk 0:02:52]} 9. Bb2 {[%clk 0:02:27]}  Qe7 {[%clk 0:02:41]} 10. dxe4 {[%clk 0:01:45]}  Nxe4 {[%clk 0:02:41]} 11. Bxg7 {[%clk 0:01:42]}  Be5 {[%clk 0:02:42]} 12. Bxh8 {[%clk 0:01:37]}  Bxh8 {[%clk 0:02:42]} 13. Na3 {[%clk 0:01:35]}  Nc3 {[%clk 0:02:36]} 14. Qc2 {[%clk 0:00:52]}  Nxe2+ {[%clk 0:02:30]} 15. Kh1 {[%clk 0:00:51]}  Bxg2+ {[%clk 0:02:05]} 16. Kxg2 {[%clk 0:00:52]}  Bxa1 {[%clk 0:02:00]} 17. Nf3 {[%clk 0:00:52]}  Bc3 {[%clk 0:01:51]} 18. Nb1 {[%clk 0:00:36]}  Ba5 {[%clk 0:01:50]} 19. Nbd2 {[%clk 0:00:36]}  Nd4 {[%clk 0:01:40]} 20. Qxh7 {[%clk 0:00:20]}  Bxd2 {[%clk 0:01:33]} 21. Nxd2 {[%clk 0:00:16]}  Nbc6 {[%clk 0:01:26]} 22. Qh8+ {[%clk 0:00:15]}  Qf8 {[%clk 0:01:25]} 23. Re1+ {[%clk 0:00:15]}  Ne6 {[%clk 0:01:25]} 24. Qf6 {[%clk 0:00:13]}  d6 {[%clk 0:01:04]} 25. Ne4 {[%clk 0:00:11]}  Kd7 {[%clk 0:01:04]} 26. Rd1 {[%clk 0:00:07]}  Ncd4 {[%clk 0:01:02]} 27. Nc3 {[%clk 0:00:03]}  Qg7 {[%clk 0:00:47]} 28. Qh4 {[%clk 0:00:01]}  Nf5 {[%clk 0:00:37]} 29. Qe4 {[%clk 0:00:01]}  Qxc3 {[%clk 0:00:30]} 30. Qxa8 {[%clk 0:00:01]}  Ne3+ {[%clk 0:00:30]} 31. fxe3 {[%clk 0:00:01]}  Qc2+ {[%clk 0:00:30]} 32. Kf3 {[%clk 0:00:00]}  Qxd1+ {[%clk 0:00:30]} 0-1


[Site "https://www.chess.com"]

[Event "Titled Tuesday Blitz May 23 Late 2023"]
[White "Cooklev, Steven"]
[Black "Florianovitz, Derlei Alex"]
[WhiteFideId "2050552"]
[BlackFideId "2114178"]
[WhiteElo "2305"]
[BlackElo "1953"]
[Result "1-0"]
[Round "06"]
[TimeControl "180+2"]
[Date "2023.05.23"]
[WhiteClock "0:00:09"]
[BlackClock "0:00:19"]

1. e4 {[%clk 0:03:00]}  e6 {[%clk 0:02:59]} 2. d4 {[%clk 0:03:00]}  d5 {[%clk 0:03:00]} 3. Nd2 {[%clk 0:03:01]}  c5 {[%clk 0:02:59]} 4. Ngf3 {[%clk 0:03:01]}  cxd4 {[%clk 0:02:56]} 5. Nxd4 {[%clk 0:03:02]}  Nc6 {[%clk 0:02:55]} 6. Bb5 {[%clk 0:03:02]}  Bd7 {[%clk 0:02:55]} 7. Nxc6 {[%clk 0:03:02]}  bxc6 {[%clk 0:02:56]} 8. Bd3 {[%clk 0:03:02]}  Bd6 {[%clk 0:02:56]} 9. Qe2 {[%clk 0:03:02]}  Qc7 {[%clk 0:02:56]} 10. Nf3 {[%clk 0:03:00]}  dxe4 {[%clk 0:02:54]} 11. Qxe4 {[%clk 0:03:00]}  Nf6 {[%clk 0:02:55]} 12. Qh4 {[%clk 0:03:00]}  Be7 {[%clk 0:02:47]} 13. Qg3 {[%clk 0:02:31]}  Qxg3 {[%clk 0:02:45]} 14. hxg3 {[%clk 0:02:31]}  c5 {[%clk 0:02:41]} 15. Ne5 {[%clk 0:02:25]}  Nd5 {[%clk 0:02:34]} 16. Bd2 {[%clk 0:02:00]}  Bf6 {[%clk 0:02:33]} 17. Nxd7 {[%clk 0:02:00]}  Kxd7 {[%clk 0:02:33]} 18. O-O-O {[%clk 0:02:00]}  h6 {[%clk 0:02:25]} 19. c4 {[%clk 0:01:50]}  Nb6 {[%clk 0:02:23]} 20. Be4 {[%clk 0:01:32]}  Nxc4 {[%clk 0:02:07]} 21. Bc3+ {[%clk 0:01:20]}  Kc7 {[%clk 0:02:02]} 22. Bxf6 {[%clk 0:01:19]}  gxf6 {[%clk 0:02:03]} 23. Bxa8 {[%clk 0:01:19]}  Rxa8 {[%clk 0:02:02]} 24. Rxh6 {[%clk 0:01:20]}  f5 {[%clk 0:01:59]} 25. Rh7 {[%clk 0:01:09]}  Nd6 {[%clk 0:01:59]} 26. Rdh1 {[%clk 0:01:06]}  Rb8 {[%clk 0:01:52]} 27. Rh8 {[%clk 0:01:02]}  Rb4 {[%clk 0:01:51]} 28. Ra8 {[%clk 0:00:58]}  Ra4 {[%clk 0:01:46]} 29. a3 {[%clk 0:00:54]}  c4 {[%clk 0:01:46]} 30. Rh4 {[%clk 0:00:47]}  e5 {[%clk 0:01:39]} 31. f3 {[%clk 0:00:29]}  Kb7 {[%clk 0:01:36]} 32. Rd8 {[%clk 0:00:28]}  Kc7 {[%clk 0:01:36]} 33. Ra8 {[%clk 0:00:28]}  Kb7 {[%clk 0:01:33]} 34. Rg8 {[%clk 0:00:28]}  e4 {[%clk 0:01:27]} 35. fxe4 {[%clk 0:00:28]}  fxe4 {[%clk 0:01:27]} 36. Rd8 {[%clk 0:00:23]}  Kc7 {[%clk 0:01:26]} 37. Ra8 {[%clk 0:00:23]}  Ra5 {[%clk 0:01:14]} 38. Rf4 {[%clk 0:00:22]}  Kb7 {[%clk 0:01:03]} 39. Rd8 {[%clk 0:00:21]}  Kc7 {[%clk 0:01:04]} 40. Rxd6 {[%clk 0:00:20]}  Kxd6 {[%clk 0:01:03]} 41. Rxe4 {[%clk 0:00:20]}  Rg5 {[%clk 0:01:00]} 42. Re3 {[%clk 0:00:18]}  Kd5 {[%clk 0:00:57]} 43. Kc2 {[%clk 0:00:18]}  Kd4 {[%clk 0:00:57]} 44. Rf3 {[%clk 0:00:18]}  f5 {[%clk 0:00:56]} 45. Rf4+ {[%clk 0:00:18]}  Kd5 {[%clk 0:00:56]} 46. Rf3 {[%clk 0:00:16]}  Kd4 {[%clk 0:00:50]} 47. a4 {[%clk 0:00:16]}  a5 {[%clk 0:00:49]} 48. Kd2 {[%clk 0:00:15]}  Ke4 {[%clk 0:00:37]} 49. Kc3 {[%clk 0:00:14]}  Kd5 {[%clk 0:00:32]} 50. Re3 {[%clk 0:00:13]}  Rg4 {[%clk 0:00:29]} 51. Rf3 {[%clk 0:00:11]}  Rg5 {[%clk 0:00:29]} 52. b3 {[%clk 0:00:10]}  cxb3 {[%clk 0:00:28]} 53. Kxb3 {[%clk 0:00:11]}  Ke4 {[%clk 0:00:25]} 54. Kc4 {[%clk 0:00:11]}  Rh5 {[%clk 0:00:22]} 55. Rf1 {[%clk 0:00:09]}  Rg5 {[%clk 0:00:19]} 56. Re1# {[%clk 0:00:09]} 1-0


[Site "https://www.chess.com"]

[Event "Titled Tuesday Blitz May 23 Late 2023"]
[White "Martinez, Ayelen"]
[Black "MunichMouse"]
[WhiteFideId "118702"]
[WhiteElo "2125"]
[BlackElo "2266"]
[Result "0-1"]
[Round "06"]
[TimeControl "180+2"]
[Date "2023.05.23"]
[WhiteClock "0:00:00"]
[BlackClock "0:00:04"]

1. e4 {[%clk 0:03:00]}  c5 {[%clk 0:02:54]} 2. d4 {[%clk 0:03:01]}  cxd4 {[%clk 0:02:53]} 3. c3 {[%clk 0:03:01]}  dxc3 {[%clk 0:02:54]} 4. Nxc3 {[%clk 0:03:01]}  e6 {[%clk 0:02:55]} 5. Nf3 {[%clk 0:03:01]}  Bc5 {[%clk 0:02:55]} 6. Bc4 {[%clk 0:03:01]}  Ne7 {[%clk 0:02:56]} 7. O-O {[%clk 0:03:00]}  O-O {[%clk 0:02:57]} 8. Bg5 {[%clk 0:02:52]}  a6 {[%clk 0:02:54]} 9. Rc1 {[%clk 0:02:51]}  d6 {[%clk 0:02:54]} 10. Bb3 {[%clk 0:02:42]}  Nbc6 {[%clk 0:02:53]} 11. e5 {[%clk 0:02:37]}  d5 {[%clk 0:02:42]} 12. Nxd5 {[%clk 0:02:31]}  exd5 {[%clk 0:02:37]} 13. Rxc5 {[%clk 0:02:30]}  Be6 {[%clk 0:02:37]} 14. Nd4 {[%clk 0:02:15]}  Nxd4 {[%clk 0:02:07]} 15. Qxd4 {[%clk 0:02:10]}  Nc6 {[%clk 0:02:06]} 16. Rxc6 {[%clk 0:01:30]}  Qxg5 {[%clk 0:02:01]} 17. Rc7 {[%clk 0:01:26]}  b5 {[%clk 0:01:52]} 18. f4 {[%clk 0:01:25]}  Qd8 {[%clk 0:01:35]} 19. Rc6 {[%clk 0:01:14]}  g6 {[%clk 0:01:29]} 20. Rd6 {[%clk 0:00:57]}  Qh4 {[%clk 0:01:13]} 21. Bxd5 {[%clk 0:00:47]}  Bxd5 {[%clk 0:01:12]} 22. Qxd5 {[%clk 0:00:47]}  Rad8 {[%clk 0:00:56]} 23. g3 {[%clk 0:00:35]}  Qe7 {[%clk 0:00:55]} 24. f5 {[%clk 0:00:25]}  Rxd6 {[%clk 0:00:46]} 25. exd6 {[%clk 0:00:25]}  Qe3+ {[%clk 0:00:45]} 26. Kg2 {[%clk 0:00:25]}  g5 {[%clk 0:00:31]} 27. f6 {[%clk 0:00:23]}  h6 {[%clk 0:00:30]} 28. d7 {[%clk 0:00:20]}  Rd8 {[%clk 0:00:29]} 29. Rf3 {[%clk 0:00:18]}  Qe6 {[%clk 0:00:18]} 30. Rd3 {[%clk 0:00:11]}  Qxf6 {[%clk 0:00:18]} 31. Qe4 {[%clk 0:00:08]}  Qxb2+ {[%clk 0:00:17]} 32. Kh3 {[%clk 0:00:06]}  Qf6 {[%clk 0:00:17]} 33. Qe8+ {[%clk 0:00:05]}  Kg7 {[%clk 0:00:18]} 34. Qe4 {[%clk 0:00:05]}  Qe6+ {[%clk 0:00:17]} 35. Qxe6 {[%clk 0:00:05]}  fxe6 {[%clk 0:00:18]} 36. Rd6 {[%clk 0:00:05]}  Kf6 {[%clk 0:00:18]} 37. Kg4 {[%clk 0:00:06]}  Ke7 {[%clk 0:00:18]} 38. Rxa6 {[%clk 0:00:05]}  Rxd7 {[%clk 0:00:19]} 39. Kh5 {[%clk 0:00:05]}  Rd2 {[%clk 0:00:17]} 40. h4 {[%clk 0:00:05]}  gxh4 {[%clk 0:00:17]} 41. gxh4 {[%clk 0:00:06]}  Rh2 {[%clk 0:00:16]} 42. Kg4 {[%clk 0:00:05]}  Rd2 {[%clk 0:00:13]} 43. Kh5 {[%clk 0:00:05]}  Rh2 {[%clk 0:00:11]} 44. Rb6 {[%clk 0:00:05]}  Kf6 {[%clk 0:00:10]} 45. Rxb5 {[%clk 0:00:05]}  Rxa2 {[%clk 0:00:10]} 46. Kxh6 {[%clk 0:00:05]}  Rh2 {[%clk 0:00:09]} 47. h5 {[%clk 0:00:05]}  e5 {[%clk 0:00:10]} 48. Rb8 {[%clk 0:00:04]}  e4 {[%clk 0:00:09]} 49. Rf8+ {[%clk 0:00:04]}  Ke5 {[%clk 0:00:10]} 50. Re8+ {[%clk 0:00:05]}  Kf4 {[%clk 0:00:10]} 51. Rf8+ {[%clk 0:00:04]}  Kg4 {[%clk 0:00:10]} 52. Rg8+ {[%clk 0:00:04]}  Kf3 {[%clk 0:00:10]} 53. Rf8+ {[%clk 0:00:04]}  Kg4 {[%clk 0:00:10]} 54. Re8 {[%clk 0:00:02]}  Rxh5+ {[%clk 0:00:08]} 55. Kg7 {[%clk 0:00:02]}  Kf4 {[%clk 0:00:06]} 56. Kg6 {[%clk 0:00:02]}  Rg5+ {[%clk 0:00:05]} 57. Kf6 {[%clk 0:00:02]}  Rf5+ {[%clk 0:00:06]} 58. Kg6 {[%clk 0:00:01]}  Re5 {[%clk 0:00:06]} 59. Rf8+ {[%clk 0:00:02]}  Kg3 {[%clk 0:00:07]} 60. Kf6 {[%clk 0:00:00]}  Rb5 {[%clk 0:00:04]} 0-1


[Site "https://www.chess.com"]

[Event "Titled Tuesday Blitz May 23 Late 2023"]
[White "Simonovic, Miroslav"]
[Black "Burke, Paul"]
[WhiteFideId "919152"]
[BlackFideId "2605767"]
[WhiteElo "2042"]
[BlackElo "1888"]
[Result "1-0"]
[Round "06"]
[TimeControl "180+2"]
[Date "2023.05.23"]
[WhiteClock "0:02:13"]
[BlackClock "0:01:08"]

1. d4 {[%clk 0:03:00]}  a6 {[%clk 0:02:56]} 2. Bg5 {[%clk 0:03:01]}  h6 {[%clk 0:02:55]} 3. Bh4 {[%clk 0:03:01]}  g5 {[%clk 0:02:54]} 4. Bg3 {[%clk 0:03:01]}  d6 {[%clk 0:02:54]} 5. e3 {[%clk 0:03:01]}  Nd7 {[%clk 0:02:53]} 6. h4 {[%clk 0:03:00]}  gxh4 {[%clk 0:02:41]} 7. Bxh4 {[%clk 0:02:59]}  Bg7 {[%clk 0:02:41]} 8. c4 {[%clk 0:02:57]}  Ngf6 {[%clk 0:02:37]} 9. Nc3 {[%clk 0:02:57]}  e5 {[%clk 0:02:35]} 10. Be2 {[%clk 0:02:46]}  c6 {[%clk 0:02:25]} 11. Nf3 {[%clk 0:02:42]}  Qa5 {[%clk 0:02:24]} 12. dxe5 {[%clk 0:02:39]}  Nxe5 {[%clk 0:02:18]} 13. Nxe5 {[%clk 0:02:39]}  dxe5 {[%clk 0:02:10]} 14. Qd2 {[%clk 0:02:36]}  Bd7 {[%clk 0:02:07]} 15. O-O-O {[%clk 0:02:33]}  O-O-O {[%clk 0:02:04]} 16. Qc2 {[%clk 0:02:33]}  Be6 {[%clk 0:01:44]} 17. Rxd8+ {[%clk 0:02:29]}  Rxd8 {[%clk 0:01:43]} 18. Rd1 {[%clk 0:02:29]}  Rxd1+ {[%clk 0:01:43]} 19. Qxd1 {[%clk 0:02:27]}  Qd8 {[%clk 0:01:34]} 20. Qxd8+ {[%clk 0:02:21]}  Kxd8 {[%clk 0:01:31]} 21. Ne4 {[%clk 0:02:22]}  Ke7 {[%clk 0:01:26]} 22. Nc5 {[%clk 0:02:17]}  Bc8 {[%clk 0:01:20]} 23. a4 {[%clk 0:02:16]}  b6 {[%clk 0:01:16]} 24. Ne4 {[%clk 0:02:14]}  Ke6 {[%clk 0:01:15]} 25. Nxf6 {[%clk 0:02:13]}  Bxf6 {[%clk 0:01:08]} 26. Bg4+ {[%clk 0:02:13]} 1-0


[Site "https://www.chess.com"]

[Event "Titled Tuesday Blitz May 23 Late 2023"]
[White "Vargas, Mauricio"]
[Black "lluiss"]
[WhiteFideId "4404572"]
[WhiteElo "1986"]
[BlackElo "2258"]
[Result "0-1"]
[Round "06"]
[TimeControl "180+2"]
[Date "2023.05.23"]
[WhiteClock "0:00:08"]
[BlackClock "0:01:46"]

1. e4 {[%clk 0:02:59]}  c5 {[%clk 0:02:58]} 2. Nc3 {[%clk 0:02:58]}  d6 {[%clk 0:02:56]} 3. f4 {[%clk 0:02:58]}  g6 {[%clk 0:02:54]} 4. Nf3 {[%clk 0:02:58]}  Bg7 {[%clk 0:02:54]} 5. Bb5+ {[%clk 0:02:58]}  Bd7 {[%clk 0:02:53]} 6. Bxd7+ {[%clk 0:02:52]}  Qxd7 {[%clk 0:02:53]} 7. d3 {[%clk 0:02:53]}  Nc6 {[%clk 0:02:53]} 8. O-O {[%clk 0:02:53]}  Nf6 {[%clk 0:02:53]} 9. Qe1 {[%clk 0:02:53]}  O-O {[%clk 0:02:53]} 10. Ne2 {[%clk 0:02:50]}  b5 {[%clk 0:02:50]} 11. c3 {[%clk 0:02:49]}  a5 {[%clk 0:02:49]} 12. Qh4 {[%clk 0:02:48]}  Qg4 {[%clk 0:02:48]} 13. Qe1 {[%clk 0:02:36]}  b4 {[%clk 0:02:46]} 14. h3 {[%clk 0:02:34]}  Qd7 {[%clk 0:02:42]} 15. Bd2 {[%clk 0:02:31]}  a4 {[%clk 0:02:42]} 16. Qh4 {[%clk 0:02:29]}  a3 {[%clk 0:02:40]} 17. bxa3 {[%clk 0:02:22]}  bxc3 {[%clk 0:02:40]} 18. Nxc3 {[%clk 0:02:14]}  Rxa3 {[%clk 0:02:37]} 19. Rab1 {[%clk 0:01:52]}  Nd4 {[%clk 0:02:37]} 20. g4 {[%clk 0:01:23]}  Rxc3 {[%clk 0:02:27]} 21. Bxc3 {[%clk 0:01:14]}  Ne2+ {[%clk 0:02:27]} 22. Kh1 {[%clk 0:01:02]}  Nxc3 {[%clk 0:02:28]} 23. Rb3 {[%clk 0:00:58]}  Nxa2 {[%clk 0:02:24]} 24. Rfb1 {[%clk 0:00:50]}  Nb4 {[%clk 0:02:24]} 25. e5 {[%clk 0:00:42]}  dxe5 {[%clk 0:02:21]} 26. fxe5 {[%clk 0:00:42]}  Qd5 {[%clk 0:02:09]} 27. Kg2 {[%clk 0:00:39]}  Nd7 {[%clk 0:02:08]} 28. Kg3 {[%clk 0:00:25]}  Nxe5 {[%clk 0:02:07]} 29. Ng5 {[%clk 0:00:25]}  h6 {[%clk 0:01:59]} 30. Nf3 {[%clk 0:00:19]}  Qxf3+ {[%clk 0:01:57]} 31. Kh2 {[%clk 0:00:16]}  Nexd3 {[%clk 0:01:51]} 32. Qxe7 {[%clk 0:00:12]}  Be5+ {[%clk 0:01:48]} 33. Kg1 {[%clk 0:00:10]}  Qf2+ {[%clk 0:01:46]} 34. Kh1 {[%clk 0:00:08]}  Qh2# {[%clk 0:01:46]} 0-1


[Site "https://www.chess.com"]

[Event "Titled Tuesday Blitz May 23 Late 2023"]
[White "Matthew_Clarke"]
[Black "Powell, Paul"]
[BlackFideId "2005840"]
[WhiteElo "2258"]
[BlackElo "2080"]
[Result "1-0"]
[Round "06"]
[TimeControl "180+2"]
[Date "2023.05.23"]
[WhiteClock "0:00:01"]
[BlackClock "0:00:00"]

1. d4 {[%clk 0:03:00]}  Nf6 {[%clk 0:02:59]} 2. c4 {[%clk 0:03:00]}  e5 {[%clk 0:02:59]} 3. dxe5 {[%clk 0:02:58]}  Ne4 {[%clk 0:02:59]} 4. Nd2 {[%clk 0:02:28]}  Nxd2 {[%clk 0:02:54]} 5. Bxd2 {[%clk 0:02:27]}  Nc6 {[%clk 0:02:54]} 6. Nf3 {[%clk 0:02:26]}  Bc5 {[%clk 0:02:53]} 7. e3 {[%clk 0:02:23]}  O-O {[%clk 0:02:53]} 8. Bd3 {[%clk 0:02:21]}  Re8 {[%clk 0:02:52]} 9. Bc3 {[%clk 0:02:20]}  Qe7 {[%clk 0:02:26]} 10. O-O {[%clk 0:02:08]}  d6 {[%clk 0:02:24]} 11. exd6 {[%clk 0:02:05]}  Bxd6 {[%clk 0:02:24]} 12. h3 {[%clk 0:02:04]}  Ne5 {[%clk 0:02:20]} 13. Nxe5 {[%clk 0:01:51]}  Bxe5 {[%clk 0:02:19]} 14. Bxe5 {[%clk 0:01:48]}  Qxe5 {[%clk 0:02:20]} 15. Qc2 {[%clk 0:01:44]}  h6 {[%clk 0:02:19]} 16. Be2 {[%clk 0:01:30]}  Bf5 {[%clk 0:02:14]} 17. Qb3 {[%clk 0:01:30]}  Rab8 {[%clk 0:02:12]} 18. Bf3 {[%clk 0:01:23]}  c6 {[%clk 0:02:09]} 19. Rfd1 {[%clk 0:01:21]}  Qf6 {[%clk 0:02:05]} 20. Rd4 {[%clk 0:01:15]}  Bxh3 {[%clk 0:01:51]} 21. Rad1 {[%clk 0:01:01]}  Be6 {[%clk 0:01:45]} 22. Qa3 {[%clk 0:00:56]}  a6 {[%clk 0:01:43]} 23. Qa5 {[%clk 0:00:48]}  Qe7 {[%clk 0:01:40]} 24. c5 {[%clk 0:00:45]}  Rec8 {[%clk 0:01:29]} 25. b4 {[%clk 0:00:39]}  Qf6 {[%clk 0:01:22]} 26. a4 {[%clk 0:00:34]}  Qe5 {[%clk 0:00:49]} 27. R1d2 {[%clk 0:00:32]}  g6 {[%clk 0:00:47]} 28. Qb6 {[%clk 0:00:31]}  h5 {[%clk 0:00:38]} 29. Bd1 {[%clk 0:00:29]}  Kg7 {[%clk 0:00:35]} 30. Bc2 {[%clk 0:00:28]}  Qf6 {[%clk 0:00:29]} 31. Rd6 {[%clk 0:00:28]}  h4 {[%clk 0:00:27]} 32. b5 {[%clk 0:00:23]}  h3 {[%clk 0:00:21]} 33. gxh3 {[%clk 0:00:12]}  Qg5+ {[%clk 0:00:19]} 34. Kh2 {[%clk 0:00:12]}  Qe5+ {[%clk 0:00:18]} 35. f4 {[%clk 0:00:11]}  Qxe3 {[%clk 0:00:16]} 36. f5 {[%clk 0:00:06]}  Qf4+ {[%clk 0:00:11]} 37. Kg1 {[%clk 0:00:06]}  Bxf5 {[%clk 0:00:10]} 38. Bxf5 {[%clk 0:00:06]}  Qxf5 {[%clk 0:00:10]} 39. Rd7 {[%clk 0:00:06]}  Rh8 {[%clk 0:00:06]} 40. bxc6 {[%clk 0:00:05]}  Rxh3 {[%clk 0:00:04]} 41. Qc7 {[%clk 0:00:02]}  Qg4+ {[%clk 0:00:00]} 42. Kf2 {[%clk 0:00:01]} 1-0


[Site "https://www.chess.com"]

[Event "Titled Tuesday Blitz May 23 Late 2023"]
[White "Bachmann, Axel"]
[Black "Bortnyk, Olexandr"]
[WhiteFideId "3700488"]
[BlackFideId "14120828"]
[WhiteElo "2605"]
[BlackElo "2734"]
[Result "1/2-1/2"]
[Round "07"]
[TimeControl "180+2"]
[Date "2023.05.23"]
[WhiteClock "0:00:10"]
[BlackClock "0:00:12"]

1. Nf3 {[%clk 0:02:59]}  Nf6 {[%clk 0:02:59]} 2. c4 {[%clk 0:02:59]}  b6 {[%clk 0:02:59]} 3. Nc3 {[%clk 0:02:57]}  Bb7 {[%clk 0:03:00]} 4. d4 {[%clk 0:02:56]}  g6 {[%clk 0:03:01]} 5. d5 {[%clk 0:02:52]}  Bg7 {[%clk 0:03:01]} 6. e4 {[%clk 0:02:51]}  O-O {[%clk 0:03:01]} 7. Bd3 {[%clk 0:02:46]}  Na6 {[%clk 0:02:53]} 8. O-O {[%clk 0:02:46]}  Nc5 {[%clk 0:02:50]} 9. Bc2 {[%clk 0:02:46]}  a5 {[%clk 0:02:50]} 10. e5 {[%clk 0:02:40]}  Ng4 {[%clk 0:02:24]} 11. Re1 {[%clk 0:02:33]}  d6 {[%clk 0:02:25]} 12. Bf4 {[%clk 0:02:30]}  dxe5 {[%clk 0:02:17]} 13. Nxe5 {[%clk 0:02:31]}  Nxe5 {[%clk 0:02:17]} 14. Bxe5 {[%clk 0:02:31]}  Bxe5 {[%clk 0:02:16]} 15. Rxe5 {[%clk 0:02:32]}  e6 {[%clk 0:02:17]} 16. Qd2 {[%clk 0:02:19]}  Qh4 {[%clk 0:02:12]} 17. Rae1 {[%clk 0:02:10]}  Rad8 {[%clk 0:02:02]} 18. a3 {[%clk 0:01:46]}  exd5 {[%clk 0:00:54]} 19. cxd5 {[%clk 0:01:47]}  c6 {[%clk 0:00:39]} 20. g3 {[%clk 0:01:29]}  Qf6 {[%clk 0:00:37]} 21. b4 {[%clk 0:01:27]}  axb4 {[%clk 0:00:38]} 22. axb4 {[%clk 0:01:28]}  Ne6 {[%clk 0:00:36]} 23. d6 {[%clk 0:01:13]}  Ng5 {[%clk 0:00:33]} 24. Qxg5 {[%clk 0:01:12]}  Qxg5 {[%clk 0:00:29]} 25. Rxg5 {[%clk 0:01:13]}  Rxd6 {[%clk 0:00:29]} 26. Re7 {[%clk 0:01:11]}  Ba8 {[%clk 0:00:27]} 27. Rge5 {[%clk 0:01:00]}  Rd4 {[%clk 0:00:27]} 28. Re4 {[%clk 0:00:59]}  Rd2 {[%clk 0:00:27]} 29. Bb3 {[%clk 0:00:55]}  c5 {[%clk 0:00:26]} 30. Re2 {[%clk 0:00:36]}  Rd3 {[%clk 0:00:25]} 31. R2e3 {[%clk 0:00:35]}  Rd4 {[%clk 0:00:21]} 32. bxc5 {[%clk 0:00:34]}  bxc5 {[%clk 0:00:22]} 33. Ra7 {[%clk 0:00:33]}  c4 {[%clk 0:00:19]} 34. Bc2 {[%clk 0:00:28]}  Rfd8 {[%clk 0:00:11]} 35. Be4 {[%clk 0:00:28]}  Bxe4 {[%clk 0:00:10]} 36. Rxe4 {[%clk 0:00:28]}  Rd3 {[%clk 0:00:08]} 37. Rxc4 {[%clk 0:00:28]}  Rf3 {[%clk 0:00:07]} 38. Kg2 {[%clk 0:00:27]}  Rf5 {[%clk 0:00:07]} 39. Ne4 {[%clk 0:00:26]}  h5 {[%clk 0:00:08]} 40. Rc5 {[%clk 0:00:23]}  Rxc5 {[%clk 0:00:07]} 41. Nxc5 {[%clk 0:00:24]}  Rd5 {[%clk 0:00:07]} 42. Ne4 {[%clk 0:00:23]}  Re5 {[%clk 0:00:07]} 43. Kf3 {[%clk 0:00:20]}  Rf5+ {[%clk 0:00:08]} 44. Ke3 {[%clk 0:00:20]}  Re5 {[%clk 0:00:08]} 45. f4 {[%clk 0:00:19]}  Rb5 {[%clk 0:00:07]} 46. Ng5 {[%clk 0:00:16]}  f6 {[%clk 0:00:06]} 47. Ne4 {[%clk 0:00:16]}  f5 {[%clk 0:00:05]} 48. Nf6+ {[%clk 0:00:15]}  Kf8 {[%clk 0:00:05]} 49. Kd4 {[%clk 0:00:14]}  h4 {[%clk 0:00:03]} 50. gxh4 {[%clk 0:00:14]}  Rb2 {[%clk 0:00:03]} 51. h3 {[%clk 0:00:09]}  Rb3 {[%clk 0:00:02]} 52. Nd5 {[%clk 0:00:06]}  Rxh3 {[%clk 0:00:02]} 53. Ke5 {[%clk 0:00:06]}  Rd3 {[%clk 0:00:02]} 54. Kf6 {[%clk 0:00:05]}  Ke8 {[%clk 0:00:02]} 55. Ke6 {[%clk 0:00:05]}  Kf8 {[%clk 0:00:02]} 56. Ne7 {[%clk 0:00:05]}  Kg7 {[%clk 0:00:01]} 57. Nxf5+ {[%clk 0:00:05]}  Kh8 {[%clk 0:00:01]} 58. Ne7 {[%clk 0:00:04]}  Kg7 {[%clk 0:00:02]} 59. Nd5+ {[%clk 0:00:03]}  Kh6 {[%clk 0:00:02]} 60. Ra6 {[%clk 0:00:01]}  Kh5 {[%clk 0:00:02]} 61. Ke5 {[%clk 0:00:02]}  Rd1 {[%clk 0:00:01]} 62. Nf6+ {[%clk 0:00:02]}  Kxh4 {[%clk 0:00:02]} 63. Ne4 {[%clk 0:00:03]}  Kh5 {[%clk 0:00:02]} 64. Ra8 {[%clk 0:00:03]}  Re1 {[%clk 0:00:02]} 65. Rg8 {[%clk 0:00:04]}  Re2 {[%clk 0:00:01]} 66. Rg7 {[%clk 0:00:03]}  Re1 {[%clk 0:00:02]} 67. Kd4 {[%clk 0:00:02]}  Kg4 {[%clk 0:00:02]} 68. Rf7 {[%clk 0:00:01]}  Rf1 {[%clk 0:00:02]} 69. Ke5 {[%clk 0:00:02]}  Re1 {[%clk 0:00:02]} 70. Rf6 {[%clk 0:00:03]}  Kf3 {[%clk 0:00:03]} 71. Rxg6 {[%clk 0:00:02]}  Rxe4+ {[%clk 0:00:03]} 72. Kf5 {[%clk 0:00:03]}  Rxf4+ {[%clk 0:00:04]} 73. Kg5 {[%clk 0:00:04]}  Ra4 {[%clk 0:00:04]} 74. Rf6+ {[%clk 0:00:04]}  Kg3 {[%clk 0:00:05]} 75. Kg6 {[%clk 0:00:05]}  Ra5 {[%clk 0:00:05]} 76. Kg7 {[%clk 0:00:05]}  Kg4 {[%clk 0:00:05]} 77. Rg6+ {[%clk 0:00:06]}  Kf5 {[%clk 0:00:06]} 78. Rf6+ {[%clk 0:00:07]}  Ke5 {[%clk 0:00:06]} 79. Kg6 {[%clk 0:00:07]}  Ra8 {[%clk 0:00:06]} 80. Rf5+ {[%clk 0:00:07]}  Ke4 {[%clk 0:00:06]} 81. Rf7 {[%clk 0:00:08]}  Ra6+ {[%clk 0:00:07]} 82. Kg7 {[%clk 0:00:08]}  Ra1 {[%clk 0:00:07]} 83. Re7+ {[%clk 0:00:08]}  Kf5 {[%clk 0:00:08]} 84. Rf7+ {[%clk 0:00:08]}  Kg5 {[%clk 0:00:08]} 85. Rb7 {[%clk 0:00:09]}  Ra5 {[%clk 0:00:09]} 86. Rc7 {[%clk 0:00:09]}  Rb5 {[%clk 0:00:09]} 87. Rd7 {[%clk 0:00:09]}  Re5 {[%clk 0:00:09]} 88. Ra7 {[%clk 0:00:09]}  Re6 {[%clk 0:00:09]} 89. Ra5+ {[%clk 0:00:09]}  Kf4 {[%clk 0:00:10]} 90. Ra7 {[%clk 0:00:10]}  Re4 {[%clk 0:00:11]} 91. Rf7+ {[%clk 0:00:09]}  Ke3 {[%clk 0:00:11]} 92. Kf6 {[%clk 0:00:10]}  Rf4+ {[%clk 0:00:12]} 93. Ke6 {[%clk 0:00:10]}  Rxf7 {[%clk 0:00:12]} 94. Kxf7 {[%clk 0:00:10]} 1/2-1/2


[Site "https://www.chess.com"]